fUST/lending_fUST_20240303
["ID","MTS","AMOUNT","RATE_DAILY","PERIOD"]
[316264794,1709419847643,-500.0,0.00023973,2]
[316264796,1709419847653,-500.0,0.00023973,2]
[316264798,1709419847665,-500.0,0.00023973,2]
[316264800,1709419847675,-500.0,0.00023973,2]
[316264802,1709419847685,-4302.03,0.00023973,2]
[316264804,1709419847695,-881.1,0.00023994,2]
[316264807,1709419847706,-1114.17,0.00023994,2]
[316264809,1709419847715,-735.21,0.00023994,2]
[316264811,1709419847726,-830.46,0.00023994,2]
[316264813,1709419847736,-500.0,0.00023995,2]
[316264815,1709419847747,-500.0,0.00023995,2]
[316264817,1709419847758,-500.0,0.00023995,2]
[316264819,1709419847769,-500.0,0.00023995,2]
[316264822,1709419847779,-500.0,0.00023995,2]
[316264824,1709419847790,-500.0,0.00023995,2]
[316264826,1709419847801,-4302.03,0.00023995,2]
[316264828,1709419847813,-500.0,0.00023996,2]
[316264831,1709419847824,-500.0,0.00023996,2]
[316264833,1709419847834,-500.0,0.00023996,2]
[316264835,1709419847845,-500.0,0.00023996,2]
[316264837,1709419847856,-500.0,0.00023996,2]
[316264839,1709419847867,-500.0,0.00023996,2]
[316264842,1709419847878,-4302.03,0.00023996,2]
[316264844,1709419847888,-500.0,0.00023996,2]
[316264846,1709419847897,-500.0,0.00023996,2]
[316264848,1709419847906,-500.0,0.00023997,2]
[316264850,1709419847916,-500.0,0.00023997,2]
[316264852,1709419847926,-500.0,0.00023997,2]
[316264854,1709419847936,-500.0,0.00023997,2]
[316264856,1709419847946,-500.0,0.00023997,2]
[316264858,1709419847957,-500.0,0.00023997,2]
[316264860,1709419847967,-362.77,0.00023997,2]
[316264863,1709419847978,-500.0,0.00023997,2]
[316264865,1709419847988,-500.0,0.00023997,2]
[316264867,1709419847999,-630.81,0.00023997,2]
[316264869,1709419848009,-4302.03,0.00023997,2]
[316264871,1709419848019,-4302.03,0.00023997,2]
[316264873,1709419848029,-500.0,0.00023997,2]
[316264875,1709419848039,-500.0,0.00023997,2]
[316264878,1709419848051,-1304.7,0.00023997,2]
[316264880,1709419848061,-988.61,0.00023997,2]
[316264882,1709419848071,-500.0,0.00023997,2]
[316264884,1709419848080,-632.52,0.00023997,2]
[316264886,1709419848090,-500.0,0.00023997,2]
[316264888,1709419848099,-500.0,0.00023997,2]
[316264890,1709419848109,-5684.00394714,0.00023998,2]
[316264892,1709419848120,-500.0,0.00023998,2]
[316264895,1709419848131,-500.0,0.00023998,2]
[316264897,1709419848141,-500.0,0.00023998,2]
[316264899,1709419848152,-500.0,0.00023998,2]
[316264901,1709419848162,-500.0,0.00023998,2]
[316264903,1709419848172,-354.07341468,0.00023998,2]
[316264905,1709419848182,-500.0,0.00023998,2]
[316264907,1709419848193,-500.0,0.00023998,2]
[316264910,1709419848203,-313.18153073,0.00023998,2]
[316264912,1709419848214,-500.0,0.00023998,2]
[316264914,1709419848223,-415.6874877,0.00023998,2]
[316264916,1709419848234,-500.0,0.00023998,2]
[316264918,1709419848243,-500.0,0.00023998,2]
[316264920,1709419848253,-500.0,0.00023998,2]
[316264922,1709419848263,-500.0,0.00023998,2]
[316264924,1709419848273,-500.0,0.00023998,2]
[316264926,1709419848283,-500.0,0.00023998,2]
[316264929,1709419848294,-500.0,0.00023998,2]
[316264931,1709419848305,-646.72263966,0.00023998,2]
[316264933,1709419848317,-881.1,0.00023998,2]
[316264935,1709419848327,-1114.17,0.00023998,2]
[316264937,1709419848337,-735.21,0.00023998,2]
[316264939,1709419848346,-4302.03,0.00023998,2]
[316264941,1709419848356,-4302.03,0.00023998,2]
[316264955,1709419848472,-4302.03,0.00023998,2]
[316264957,1709419848486,-4302.03,0.00023998,2]
[316264959,1709419848495,-4302.03,0.00023998,2]
[316264961,1709419848505,-4302.03,0.00023998,2]
[316264963,1709419848514,-4302.03,0.00023998,2]
[316264965,1709419848523,-4302.03,0.00023998,2]
[316264967,1709419848535,-4302.03,0.00023998,2]
[316264969,1709419848543,-830.46,0.00023998,2]
[316264971,1709419848554,-425.61215202,0.00023998,2]
[316264973,1709419848566,-191.84916503,0.00023998,2]
[316264975,1709419848575,-179.57077703,0.00023998,2]
[316264977,1709419848584,-400.75162755,0.00023998,2]
[316264979,1709419848593,-239.01,0.00023998,2]
[316264981,1709419848601,-239.01,0.00023998,2]
[316264983,1709419848610,-239.01,0.00023998,2]
[316264985,1709419848620,-239.01,0.00023998,2]
[316264987,1709419848629,-239.01,0.00023998,2]
[316264989,1709419848638,-239.01,0.00023998,2]
[316264991,1709419848647,-239.01,0.00023998,2]
[316264993,1709419848656,-239.01,0.00023998,2]
[316264995,1709419848665,-239.01,0.00023998,2]
[316264997,1709419848674,-239.01,0.00023998,2]
[316264999,1709419848684,-280.36541373,0.00023998,2]
[316265001,1709419848692,-354.95070559,0.00023998,2]
[316265003,1709419848702,-155.16601719,0.00023998,2]
[316265006,1709419848711,-1590.67475247,0.00023998,2]
[316265007,1709419848720,-623.38533298,0.00023998,2]
[316265009,1709419848730,-159.81994913,0.00023998,2]
[316265011,1709419848739,-1238.24029911,0.00023998,2]
[316265013,1709419848748,-155.44423554,0.00023998,2]
[316265015,1709419848757,-155.16292107,0.00023998,2]
[316265017,1709419848766,-6678.7745074,0.00023998,2]
[316265019,1709419848776,-155.0558201,0.00023998,2]
[316265021,1709419848785,-155.178475,0.00023998,2]
[316265023,1709419848795,-315.79454201,0.00023998,2]
[316265025,1709419848804,-155.16455241,0.00023998,2]
[316265027,1709419848814,-2573.28620982,0.00023998,2]
[316265029,1709419848824,-214.46734632,0.00023998,2]
[316265031,1709419848833,-184.70899739,0.00023998,2]
[316265033,1709419848842,-285.98453077,0.00023998,2]
[316265036,1709419848852,-557.44319736,0.00023998,2]
[316265038,1709419848862,-649.27585788,0.00023998,2]
[316265040,1709419848871,-235.17872102,0.00023998,2]
[316265042,1709419848880,-549.00013127,0.00023998,2]
[316265043,1709419848890,-354.37392672,0.00023998,2]
[316265044,1709419848899,-156.31288912,0.00023998,2]
[316265045,1709419848908,-265.65203957,0.00023998,2]
[316265046,1709419848917,-400.0,0.00023998,2]
[316265047,1709419848926,-290.08429773,0.00023998,2]
[316265048,1709419848935,-1084.97146916,0.00023998,2]
[316265049,1709419848945,-429.13988284,0.00023998,2]
[316265050,1709419848955,-155.23588267,0.00023998,2]
[316265051,1709419848964,-752.23146897,0.00023998,2]
[316265052,1709419848974,-463.58098066,0.00023998,2]
[316265053,1709419848985,-155.69178995,0.00023998,2]
[316265054,1709419848995,-155.18622347,0.00023998,2]
[316265055,1709419849004,-291.21960429,0.00023998,2]
[316265056,1709419849013,-342.43862379,0.00023998,2]
[316265058,1709419849023,-535.34090482,0.00023998,2]
[316265060,1709419849032,-157.1486779,0.00023998,2]
[316265062,1709419849041,-160.0,0.00023999,2]
[316265063,1709419849050,-160.0,0.00023999,2]
[316265065,1709419849059,-160.0,0.00023999,2]
[316265067,1709419849068,-160.0,0.00023999,2]
[316265069,1709419849077,-160.0,0.00023999,2]
[316265071,1709419849086,-160.0,0.00023999,2]
[316265073,1709419849095,-160.0,0.00023999,2]
[316265075,1709419849104,-160.0,0.00023999,2]
[316265077,1709419849113,-160.0,0.00023999,2]
[316265079,1709419849122,-172.15825659,0.00023999,2]
[316265081,1709419849132,-392.95024596,0.00023999,2]
[316265083,1709419849141,-500.0,0.00023999,2]
[316265085,1709419849150,-500.0,0.00023999,2]
[316265087,1709419849159,-300.0,0.00023999,2]
[316265089,1709419849168,-500.0,0.00023999,2]
[316265091,1709419849178,-500.0,0.00023999,2]
[316265093,1709419849187,-500.0,0.00023999,2]
[316265095,1709419849196,-294.22963132,0.00023999,2]
[316265097,1709419849205,-500.0,0.00023999,2]
[316265099,1709419849214,-500.0,0.00023999,2]
[316265101,1709419849223,-369.28776619,0.00023999,2]
[316265103,1709419849232,-500.0,0.00023999,2]
[316265105,1709419849241,-459.1639255,0.00023999,2]
[316265106,1709419849250,-500.0,0.00023999,2]
[316265108,1709419849260,-500.0,0.00023999,2]
[316265110,1709419849269,-500.0,0.00023999,2]
[316265112,1709419849279,-225.0,0.00023999,2]
[316265114,1709419849289,-881.1,0.00023999,2]
[316265116,1709419849298,-881.1,0.00023999,2]
[316265118,1709419849308,-881.1,0.00023999,2]
[316265120,1709419849317,-881.1,0.00023999,2]
[316265122,1709419849326,-881.1,0.00023999,2]
[316265125,1709419849336,-881.1,0.00023999,2]
[316265126,1709419849346,-881.1,0.00023999,2]
[316265128,1709419849355,-500.0,0.00023999,2]
[316265130,1709419849364,-881.1,0.00023999,2]
[316265132,1709419849374,-500.0,0.00023999,2]
[316265134,1709419849383,-500.0,0.00023999,2]
[316265136,1709419849393,-881.1,0.00023999,2]
[316265138,1709419849406,-881.1,0.00023999,2]
[316265140,1709419849416,-881.1,0.00023999,2]
[316265142,1709419849425,-881.1,0.00023999,2]
[316265145,1709419849434,-881.1,0.00023999,2]
[316265147,1709419849445,-881.1,0.00023999,2]
[316265148,1709419849454,-881.1,0.00023999,2]
[316265150,1709419849463,-881.1,0.00023999,2]
[316265152,1709419849472,-881.1,0.00023999,2]
[316265154,1709419849483,-881.1,0.00023999,2]
[316265156,1709419849493,-881.1,0.00023999,2]
[316265158,1709419849502,-881.26357497,0.00023999,2]
[316265161,1709419849512,-43.86077239,0.00023999,2]
[316266672,1709419865156,872.65083423,0.00019,2]
[316268215,1709420026081,51902.9167079,0.0002,2]
[316268218,1709420058538,169.8606334,0.0002,2]
[316268219,1709420063024,2234.88835983,0.00020987,2]
[316268223,1709420230134,194.42725,0.00027397,120]
[316268270,1709421033250,-420.45335769,0.000189,2]
[316268271,1709421033260,-463.56360125,0.00020987,2]
[316268357,1709421037950,-5301.54803892,0.00020987,2]
[316268358,1709421037960,-791.0057254,0.00022479,3]
[316268359,1709421037970,-502.00276171,0.00022492,3]
[316268360,1709421037980,-13628.3095036,0.00022528,2]
[316268361,1709421037990,-8235.44669183,0.0002259,2]
[316268362,1709421038000,-155.0,0.00022897,2]
[316268363,1709421038009,-621.80915494,0.00023369,2]
[316268364,1709421038019,-200.0,0.000235,2]
[316268365,1709421038028,-251.51295679,0.00023796,2]
[316268366,1709421038038,-251.51295679,0.00023822,2]
[316268367,1709421038048,-251.51295679,0.00023848,2]
[316268368,1709421038057,-251.51295679,0.00023874,2]
[316268369,1709421038066,-192.93,0.00023885,3]
[316268370,1709421038075,-578.81,0.00023885,3]
[316268371,1709421038084,-500.0,0.00023893,2]
[316268372,1709421038094,-500.0,0.00023893,2]
[316268373,1709421038104,-585.00149845,0.00023893,2]
[316268374,1709421038113,-500.0,0.00023894,2]
[316268375,1709421038123,-500.0,0.00023894,2]
[316268376,1709421038132,-388.69595869,0.00023894,2]
[316268377,1709421038141,-500.0,0.00023894,2]
[316268378,1709421038151,-500.0,0.00023894,2]
[316268379,1709421038160,-500.0,0.00023894,2]
[316268380,1709421038170,-500.0,0.00023894,2]
[316268381,1709421038180,-500.0,0.00023894,2]
[316268382,1709421038190,-500.0,0.00023894,2]
[316268383,1709421038200,-500.0,0.00023894,2]
[316268384,1709421038210,-500.0,0.00023894,2]
[316268385,1709421038220,-500.0,0.00023894,2]
[316268386,1709421038230,-500.0,0.00023894,2]
[316268387,1709421038239,-500.0,0.00023894,2]
[316268388,1709421038249,-500.0,0.00023894,2]
[316268389,1709421038259,-500.0,0.00023894,2]
[316268390,1709421038269,-500.0,0.00023894,2]
[316268391,1709421038278,-500.61124029,0.00023894,2]
[316268392,1709421038288,-500.0,0.00023894,2]
[316268393,1709421038299,-523.6195752,0.00023894,2]
[316268394,1709421038308,-500.0,0.00023894,2]
[316268395,1709421038318,-500.50676914,0.00023894,2]
[316268396,1709421038327,-500.0,0.00023894,2]
[316268397,1709421038337,-500.74828376,0.00023894,2]
[316268398,1709421038346,-496.66332582,0.00023894,2]
[316268399,1709421038355,-500.0,0.00023894,2]
[316268400,1709421038365,-500.0,0.00023894,2]
[316268401,1709421038374,-268.45713728,0.00023894,2]
[316268402,1709421038384,-500.0,0.00023894,2]
[316268403,1709421038393,-500.0,0.00023894,2]
[316268404,1709421038403,-500.0,0.00023894,2]
[316268405,1709421038413,-500.0,0.00023894,2]
[316268406,1709421038423,-507.87854848,0.00023894,2]
[316268407,1709421038432,-500.0,0.00023894,2]
[316268408,1709421038555,-500.0,0.00023894,2]
[316268409,1709421038565,-500.0,0.00023894,2]
[316268410,1709421038575,-503.21731564,0.00023894,2]
[316268411,1709421038585,-500.0,0.00023894,2]
[316268412,1709421038594,-500.0,0.00023894,2]
[316268413,1709421038603,-400.32969916,0.00023894,2]
[316268414,1709421038612,-500.0,0.00023894,2]
[316268415,1709421038622,-500.0,0.00023894,2]
[316268416,1709421038631,-500.0,0.00023894,2]
[316268417,1709421038640,-500.0,0.00023894,2]
[316268418,1709421038650,-500.0,0.00023894,2]
[316268419,1709421038659,-500.0,0.00023894,2]
[316268420,1709421038668,-500.0,0.00023894,2]
[316268421,1709421038678,-500.0,0.00023894,2]
[316268422,1709421038687,-500.0,0.00023894,2]
[316268423,1709421038696,-500.0,0.00023894,2]
[316268424,1709421038706,-500.0,0.00023894,2]
[316268425,1709421038715,-828.93,0.00023894,2]
[316268426,1709421038727,-500.0,0.00023894,2]
[316268427,1709421038736,-788.04,0.00023894,2]
[316268428,1709421038745,-500.0,0.00023894,2]
[316268429,1709421038755,-500.0,0.00023894,2]
[316268430,1709421038765,-500.0,0.00023894,2]
[316268431,1709421038774,-500.0,0.00023894,2]
[316268432,1709421038784,-500.0,0.00023894,2]
[316268433,1709421038794,-500.0,0.00023894,2]
[316268434,1709421038804,-500.0,0.00023894,2]
[316268435,1709421038813,-610.7,0.00023894,2]
[316268436,1709421038823,-575.95,0.00023894,2]
[316268437,1709421038832,-500.0,0.00023894,2]
[316268438,1709421038841,-500.0,0.00023894,2]
[316268439,1709421038850,-500.0,0.00023894,2]
[316268440,1709421038859,-2402.14,0.00023894,2]
[316268441,1709421038868,-500.0,0.00023894,2]
[316268442,1709421038878,-500.0,0.00023894,2]
[316268443,1709421038888,-500.0,0.00023894,2]
[316268444,1709421038898,-963.57,0.00023894,2]
[316268445,1709421038907,-500.0,0.00023894,2]
[316268446,1709421038916,-500.0,0.00023894,2]
[316268447,1709421038926,-500.0,0.00023894,2]
[316268448,1709421038935,-501.067336,0.00023894,2]
[316268449,1709421038944,-500.0,0.00023894,2]
[316268450,1709421038954,-500.0,0.00023894,2]
[316268451,1709421038963,-500.0,0.00023894,2]
[316268452,1709421038972,-160.74855583,0.00023894,2]
[316268453,1709421038982,-500.0,0.00023894,2]
[316268454,1709421038991,-500.0,0.00023894,2]
[316268455,1709421039000,-263.23262185,0.00023894,2]
[316268456,1709421039009,-500.0,0.00023894,2]
[316268457,1709421039019,-500.0,0.00023894,2]
[316268458,1709421039029,-500.0,0.00023894,2]
[316268459,1709421039038,-501.7060502,0.00023894,2]
[316268460,1709421039048,-500.0,0.00023894,2]
[316268461,1709421039057,-500.0,0.00023894,2]
[316268462,1709421039066,-500.0,0.00023895,2]
[316268463,1709421039076,-500.0,0.00023895,2]
[316268464,1709421039086,-500.0,0.00023895,2]
[316268465,1709421039095,-500.0,0.00023895,2]
[316268466,1709421039104,-500.16770572,0.00023895,2]
[316268467,1709421039115,-417.34105156,0.00023895,2]
[316268468,1709421039124,-194.99343261,0.00023895,2]
[316268469,1709421039133,-500.0,0.00023895,2]
[316268470,1709421039142,-500.0,0.00023895,2]
[316268471,1709421039151,-500.0,0.00023895,2]
[316268472,1709421039162,-500.0,0.00023895,2]
[316268473,1709421039171,-500.0,0.00023895,2]
[316268474,1709421039180,-500.0,0.00023895,2]
[316268475,1709421039189,-500.0,0.00023895,2]
[316268476,1709421039198,-500.0,0.00023895,2]
[316268477,1709421039207,-500.0,0.00023895,2]
[316268478,1709421039216,-500.0,0.00023895,2]
[316268479,1709421039225,-444.69559985,0.00023895,2]
[316268480,1709421039234,-500.0,0.00023895,2]
[316268481,1709421039244,-500.0,0.00023895,2]
[316268482,1709421039253,-500.0,0.00023895,2]
[316268483,1709421039262,-500.0,0.00023895,2]
[316268484,1709421039270,-500.0,0.00023895,2]
[316268485,1709421039280,-500.0,0.00023895,2]
[316268486,1709421039289,-500.0,0.00023895,2]
[316268487,1709421039299,-500.0,0.00023895,2]
[316268488,1709421039308,-500.0,0.00023895,2]
[316268489,1709421039317,-475.99993128,0.00023895,2]
[316268490,1709421039326,-500.0,0.00023895,2]
[316268492,1709421039335,-222.46976415,0.00023895,2]
[316268493,1709421039344,-500.0,0.00023895,2]
[316268494,1709421039353,-500.0,0.00023895,2]
[316268495,1709421039362,-500.0,0.00023895,2]
[316268496,1709421039372,-569.23,0.00023895,2]
[316268497,1709421039381,-500.0,0.00023895,2]
[316268498,1709421039390,-500.0,0.00023895,2]
[316268499,1709421039399,-500.0,0.00023895,2]
[316268500,1709421039408,-500.0,0.00023895,2]
[316268501,1709421039417,-500.0,0.00023895,2]
[316268502,1709421039426,-502.21938465,0.00023895,2]
[316268503,1709421039436,-500.0,0.00023895,2]
[316268504,1709421039445,-519.47,0.00023895,2]
[316268505,1709421039454,-503.78076456,0.00023895,2]
[316268506,1709421039463,-500.0,0.00023895,2]
[316268507,1709421039472,-500.0,0.00023895,2]
[316268508,1709421039482,-828.93,0.00023895,2]
[316268509,1709421039491,-500.0,0.00023895,2]
[316268510,1709421039500,-500.0,0.00023895,2]
[316268511,1709421039510,-788.04,0.00023895,2]
[316268512,1709421039520,-788.04,0.00023895,2]
[316268513,1709421039531,-500.0,0.00023895,2]
[316268514,1709421039542,-500.0,0.00023895,2]
[316268515,1709421039553,-1587.23,0.00023895,2]
[316268516,1709421039563,-500.0,0.00023895,2]
[316268517,1709421039572,-500.0,0.00023895,2]
[316268518,1709421039581,-500.0,0.00023895,2]
[316268519,1709421039590,-500.0,0.00023895,2]
[316268520,1709421039598,-1101.89,0.00023895,2]
[316268521,1709421039607,-610.7,0.00023895,2]
[316268522,1709421039617,-575.95,0.00023895,2]
[316268523,1709421039626,-575.95,0.00023895,2]
[316268524,1709421039635,-500.0,0.00023895,2]
[316268525,1709421039644,-500.0,0.00023895,2]
[316268526,1709421039654,-2402.14,0.00023895,2]
[316268527,1709421039663,-500.0,0.00023895,2]
[316268528,1709421039673,-500.0,0.00023895,2]
[316268529,1709421039682,-3457.49,0.00023895,2]
[316268530,1709421039691,-500.0,0.00023895,2]
[316268531,1709421039700,-500.0,0.00023895,2]
[316268532,1709421039709,-500.0,0.00023895,2]
[316268533,1709421039719,-963.57,0.00023895,2]
[316268534,1709421039731,-500.0,0.00023895,2]
[316268535,1709421039740,-1185.95,0.00023895,2]
[316268536,1709421039749,-500.0,0.00023895,2]
[316268537,1709421039758,-500.0,0.00023895,2]
[316268538,1709421039767,-500.0,0.00023895,2]
[316268539,1709421039776,-500.0,0.00023895,2]
[316268540,1709421039785,-500.0,0.00023895,2]
[316268541,1709421039795,-260.09049223,0.00023895,2]
[316268542,1709421039806,-500.0,0.00023895,2]
[316268543,1709421039815,-500.0,0.00023895,2]
[316268544,1709421039824,-500.0,0.00023895,2]
[316268545,1709421039833,-500.0,0.00023895,2]
[316268546,1709421039843,-500.0,0.00023895,2]
[316268547,1709421039852,-500.0,0.00023895,2]
[316268548,1709421039861,-506.27596737,0.00023895,2]
[316268549,1709421039870,-500.0,0.00023895,2]
[316268550,1709421039879,-500.0,0.00023895,2]
[316268551,1709421039888,-501.87588497,0.00023896,2]
[316268552,1709421039898,-500.0,0.00023896,2]
[316268553,1709421039908,-500.0,0.00023896,2]
[316268554,1709421039917,-500.0,0.00023896,2]
[316268555,1709421039926,-500.0,0.00023896,2]
[316268556,1709421039935,-500.0,0.00023896,2]
[316268557,1709421039944,-502.38852837,0.00023896,2]
[316268558,1709421039953,-501.09881645,0.00023896,2]
[316268560,1709421039962,-501.27258164,0.00023896,2]
[316268561,1709421039972,-500.0,0.00023896,2]
[316268562,1709421039981,-500.5519328,0.00023896,2]
[316268563,1709421039990,-500.0,0.00023896,2]
[316268564,1709421039999,-500.0,0.00023896,2]
[316268565,1709421040008,-500.0,0.00023896,2]
[316268566,1709421040017,-500.0,0.00023896,2]
[316268567,1709421040027,-500.0,0.00023896,2]
[316268568,1709421040036,-500.87900655,0.00023896,2]
[316268569,1709421040046,-500.0,0.00023896,2]
[316268570,1709421040055,-500.0,0.00023896,2]
[316268571,1709421040065,-500.0,0.00023896,2]
[316268572,1709421040074,-500.0,0.00023896,2]
[316268573,1709421040083,-500.0,0.00023896,2]
[316268574,1709421040092,-500.0,0.00023896,2]
[316268575,1709421040101,-500.0,0.00023896,2]
[316268576,1709421040111,-500.0,0.00023896,2]
[316268577,1709421040119,-500.0,0.00023896,2]
[316268578,1709421040128,-500.0,0.00023896,2]
[316268580,1709421040137,-500.0,0.00023896,2]
[316268582,1709421040146,-500.0,0.00023896,2]
[316268583,1709421040155,-500.0,0.00023896,2]
[316268584,1709421040164,-500.0,0.00023896,2]
[316268585,1709421040173,-500.0,0.00023896,2]
[316268586,1709421040182,-192.09036978,0.00023896,2]
[316268587,1709421040190,-521.99192232,0.00023896,2]
[316268588,1709421040200,-500.0,0.00023896,2]
[316268589,1709421040209,-500.0,0.00023896,2]
[316268590,1709421040218,-500.0,0.00023896,2]
[316268591,1709421040228,-500.0,0.00023896,2]
[316268592,1709421040238,-542.76,0.00023896,2]
[316268593,1709421040247,-500.0,0.00023896,2]
[316268594,1709421040257,-500.0,0.00023896,2]
[316268595,1709421040265,-500.0,0.00023896,2]
[316268596,1709421040275,-500.0,0.00023896,2]
[316268597,1709421040284,-500.0,0.00023896,2]
[316268598,1709421040294,-295.72,0.00023896,2]
[316268599,1709421040303,-364.4579135,0.00023896,2]
[316268600,1709421040312,-500.0,0.00023896,2]
[316268601,1709421040321,-500.0,0.00023896,2]
[316268602,1709421040330,-500.0,0.00023896,2]
[316268603,1709421040339,-585.76318546,0.00023896,2]
[316268604,1709421040348,-500.0,0.00023896,2]
[316268605,1709421040358,-500.0,0.00023896,2]
[316268606,1709421040367,-500.0,0.00023896,2]
[316268607,1709421040376,-500.0,0.00023896,2]
[316268608,1709421040385,-500.0,0.00023896,2]
[316268609,1709421040394,-500.0,0.00023896,2]
[316268610,1709421040403,-500.0,0.00023896,2]
[316268611,1709421040412,-500.0,0.00023896,2]
[316268612,1709421040422,-500.0,0.00023896,2]
[316268613,1709421040431,-500.0,0.00023896,2]
[316268614,1709421040440,-501.60333829,0.00023896,2]
[316268615,1709421040449,-500.0,0.00023896,2]
[316268616,1709421040458,-500.0,0.00023896,2]
[316268617,1709421040467,-500.0,0.00023896,2]
[316268618,1709421040476,-417.82632395,0.00023896,2]
[316268619,1709421040485,-500.0,0.00023896,2]
[316268620,1709421040495,-563.815251,0.00023896,2]
[316268621,1709421040504,-500.0,0.00023896,2]
[316268622,1709421040514,-500.0,0.00023896,2]
[316268623,1709421040523,-500.0,0.00023896,2]
[316268624,1709421040532,-500.0,0.00023896,2]
[316268625,1709421040541,-500.0,0.00023896,2]
[316268626,1709421040550,-504.70722091,0.00023896,2]
[316268627,1709421040559,-500.0,0.00023896,2]
[316268628,1709421040568,-500.0,0.00023896,2]
[316268629,1709421040577,-500.0,0.00023896,2]
[316268630,1709421040586,-503.86862046,0.00023896,2]
[316268631,1709421040595,-569.23,0.00023896,2]
[316268632,1709421040605,-569.23,0.00023896,2]
[316268633,1709421040614,-228.49877623,0.00023896,2]
[316268634,1709421040623,-500.0,0.00023896,2]
[316268635,1709421040633,-500.0,0.00023896,2]
[316268636,1709421040641,-500.0,0.00023896,2]
[316268637,1709421040651,-828.93,0.00023896,2]
[316268638,1709421040660,-500.0,0.00023896,2]
[316268639,1709421040669,-500.0,0.00023896,2]
[316268640,1709421040678,-788.04,0.00023896,2]
[316268642,1709421040687,-500.0,0.00023896,2]
[316268644,1709421040696,-500.0,0.00023896,2]
[316268646,1709421040705,-500.0,0.00023896,2]
[316268648,1709421040714,-610.7,0.00023896,2]
[316268650,1709421040726,-575.95,0.00023896,2]
[316268652,1709421040735,-500.0,0.00023896,2]
[316268654,1709421040744,-2402.14,0.00023896,2]
[316268656,1709421040754,-561.46134145,0.00023896,2]
[316268658,1709421040764,-3457.49,0.00023896,2]
[316268660,1709421040773,-3457.49,0.00023896,2]
[316268662,1709421040782,-500.0,0.00023896,2]
[316268664,1709421040793,-3457.49,0.00023896,2]
[316268666,1709421040804,-963.57,0.00023896,2]
[316268668,1709421040814,-500.0,0.00023896,2]
[316268670,1709421040823,-500.0,0.00023896,2]
[316268672,1709421040832,-500.0,0.00023896,2]
[316268674,1709421040841,-500.0,0.00023896,2]
[316268684,1709421040926,-500.0,0.00023896,2]
[316268686,1709421040937,-500.0,0.00023897,2]
[316268688,1709421040946,-500.0,0.00023897,2]
[316268690,1709421040955,-500.0,0.00023897,2]
[316268692,1709421040964,-486.0,0.00023897,2]
[316268694,1709421040973,-500.0,0.00023897,2]
[316268696,1709421040982,-500.0,0.00023897,2]
[316268698,1709421040991,-500.0,0.00023897,2]
[316268700,1709421041000,-500.0,0.00023897,2]
[316268702,1709421041009,-569.23,0.00023897,2]
[316268704,1709421041018,-500.0,0.00023897,2]
[316268706,1709421041027,-3457.49,0.00023897,2]
[316268708,1709421041036,-500.0,0.00023897,2]
[316268710,1709421041045,-517.41176933,0.00023898,2]
[316268712,1709421041054,-500.0,0.00023898,2]